bitfinex-derivatives/quotes_ETHF0:USTF0_20250708
["timestamp","ask_amount","ask_price","bid_price","bid_amount"]
[1751934959842,1.86841,2550.3,2550.2,0.78414]
[1751934960134,0.78401,2550.7,2550.2,30.88122743]
[1751934960338,1.81576,2550.8,2550.7,0.78398]
[1751934960526,0.78398,2550.7,2550.6,27.79099]
[1751934960730,0.78401,2550.6,2550.5,27.005]
[1751934960931,1.44861,2550.6,2550.5,27.6926]
[1751934961427,1.96019,2550.4,2549.9,1.0239]
[1751934961634,0.78421,2550.0,2549.9,0.78421]
[1751934961831,0.78421,2550.0,2549.9,2.49571]
[1751934962031,1.44881,2550.0,2549.9,0.6876]
[1751934962432,0.78421,2550.0,2549.9,0.6876]
[1751934962630,1.44881,2550.0,2549.9,1.47183]
[1751934963026,1.44881,2550.0,2549.9,0.6876]
[1751934963232,1.44881,2550.0,2549.9,2.49573]
[1751934963434,1.0318,2550.3,2549.9,2.49573]
[1751934963435,0.78418,2550.1,2550.0,0.7842]
[1751934963636,0.78418,2550.1,2550.0,2.4957]
[1751934963832,1.44878,2550.1,2550.0,2.4957]
[1751934964342,0.78418,2550.1,2550.0,4.65842743]
[1751934964534,0.78416,2550.2,2550.1,0.78414]
[1751934964930,1.44876,2550.2,2550.1,2.49564]
[1751934965137,0.78416,2550.2,2550.1,2.49564]
[1751934965439,1.44876,2550.2,2550.1,1.7115]
[1751934965635,0.78416,2550.2,2550.1,1.7115]
[1751934966040,1.44876,2550.2,2550.1,2.49567]
[1751934966736,1.44876,2550.2,2550.1,3.51597]
[1751934967343,1.81591,2550.3,2550.2,0.78414]
[1751934967638,1.81591,2550.3,2550.2,4.65836743]
[1751934968144,1.81591,2550.3,2550.2,3.87422743]
[1751934968441,0.78417,2550.1,2550.0,2.94690743]
[1751934968741,0.78417,2550.1,2550.0,4.65840743]
[1751934969336,1.44877,2550.1,2550.0,4.65840743]
[1751934969537,0.78423,2549.9,2549.8,2.372]
[1751934969738,0.78423,2549.9,2549.8,39.20885]
[1751934970242,0.78423,2549.9,2549.8,12.21085]
[1751934970434,1.44883,2549.9,2549.8,39.20785]
[1751934970631,0.78423,2549.9,2549.8,37.85975]
[1751934970835,1.44883,2549.9,2549.8,2.49575]
[1751934971037,0.78423,2549.9,2549.8,29.49275]
[1751934971237,1.44883,2549.9,2549.8,28.7085]
[1751934971437,0.78423,2549.9,2549.8,28.7085]
[1751934971642,1.44883,2549.9,2549.8,28.7085]
[1751934971844,1.44883,2549.9,2549.8,1.7115]
[1751934972143,1.44883,2549.9,2549.8,28.7085]
[1751934972346,1.44883,2549.9,2549.8,29.49176]
[1751934972545,1.44883,2549.9,2549.8,28.7075]
[1751934972745,1.44883,2549.9,2549.8,2.49576]
[1751934972947,1.44883,2549.9,2549.8,28.7075]
[1751934973147,1.44883,2549.9,2549.8,29.49176]
[1751934973448,1.44883,2549.9,2549.8,0.6876]
[1751934973836,1.44883,2549.9,2549.8,27.6826]
[1751934974239,1.44883,2549.9,2549.7,26.995]
[1751934974240,0.78426,2549.8,2549.7,26.995]
[1751934974446,2.53036,2549.8,2549.7,26.995]
[1751934974741,2.53036,2549.8,2549.7,27.6826]
[1751934975444,3.70679,2549.8,2549.5,5.42155743]
[1751934975647,0.78435,2549.5,2549.4,10.17526]
[1751934975951,1.44895,2549.5,2549.4,2.49586]
[1751934976248,1.44895,2549.5,2549.4,31.65258743]
[1751934976446,0.6646,2549.5,2549.4,31.65258743]
[1751934976649,0.78434,2549.6,2549.5,0.78435]
[1751934976946,0.78432,2549.7,2549.6,0.78429]
[1751934977147,0.78432,2549.7,2549.6,3.63461743]
[1751934977349,0.78432,2549.7,2549.6,4.65851743]
[1751934977947,1.3836,2550.2,2549.6,3.87422743]
[1751934978136,0.78426,2549.9,2549.8,2.16272743]
[1751934978343,1.44886,2549.9,2549.8,3.87422743]
[1751934978549,0.78426,2549.9,2549.8,3.87422743]
[1751934979244,1.44886,2549.9,2549.8,3.87422743]
[1751934979648,1.44886,2549.9,2549.8,1.7115]
[1751934980346,1.44886,2549.9,2549.8,2.49576]
[1751934980941,1.44886,2549.9,2549.8,1.47186]
[1751934981144,1.44886,2549.9,2549.8,0.6876]
[1751934982244,0.78432,2549.6,2549.5,3.96756743]
[1751934982445,0.78432,2549.6,2549.5,28.7042]
[1751934982949,1.42822,2549.6,2549.5,28.7042]
[1751934983640,1.42822,2549.6,2549.5,29.48855]
[1751934983840,1.42822,2549.6,2549.5,32.62177743]
[1751934984152,0.78432,2549.6,2549.5,5.62977743]
[1751934984354,0.78432,2549.6,2549.5,32.61977743]
[1751934986551,1.0573,2550.0,2549.5,32.61977743]
[1751934986751,0.78428,2549.8,2549.7,2.94696743]
[1751934986951,0.78428,2549.8,2549.7,30.62866743]
[1751934987154,0.78425,2549.9,2549.8,0.78423]
[1751934987353,0.78425,2549.9,2549.8,1.47593]
[1751934987553,0.78425,2549.9,2549.8,2.44643]
[1751934988354,0.78416,2550.2,2550.1,0.78413]
[1751934988557,0.78416,2550.2,2550.1,31.59805743]
[1751934988859,1.0638,2550.4,2550.1,32.77432743]
[1751934989053,1.3471,2550.8,2550.3,2.16272743]
[1751934989255,0.78404,2550.6,2550.5,2.94675743]
[1751934989449,1.50410533,2550.6,2550.5,2.94675743]
[1751934989656,1.50410533,2550.6,2550.5,31.59695743]
[1751934989958,1.50410533,2550.6,2550.5,32.87565743]
[1751934990162,0.78394,2550.9,2550.8,0.78395]
[1751934990360,2.28766274,2550.9,2550.8,1.47565]
[1751934990563,2.28766274,2550.9,2550.8,2.44615]
[1751934990756,1.50372274,2550.9,2550.8,2.44615]
[1751934990952,1.50372274,2550.9,2550.8,3.74525]
[1751934991360,0.78392,2550.9,2550.8,3.74525]
[1751934991660,2.28647582,2550.9,2550.8,2.9613]
[1751934991853,0.78395,2550.8,2550.7,26.988]
[1751934992057,2.93040582,2550.8,2550.7,27.6797]
[1751934992365,2.93040582,2550.8,2550.7,28.46068]
[1751934992555,2.28650582,2550.8,2550.7,27.6767]
[1751934992955,2.93040582,2550.8,2550.7,27.6767]
[1751934993158,1.42785,2550.8,2550.7,27.6767]
[1751934993358,1.4049,2551.2,2550.7,30.80992743]
[1751934993564,1.0211,2551.3,2551.1,0.78385]
[1751934993854,1.0211,2551.3,2551.0,2.16272743]
[1751934993855,0.78386,2551.1,2551.0,2.94659743]
[1751934994062,0.78386,2551.1,2551.0,3.91709743]
[1751934994258,0.78386,2551.1,2551.0,4.60879743]
[1751934994657,1.42776,2551.1,2551.0,0.6917]
[1751934994960,2.14293381,2551.1,2551.0,26.982]
[1751934995153,1.42776,2551.1,2551.0,26.982]
[1751934995558,0.78395,2550.8,2550.7,1.75447]
[1751934995862,0.78395,2550.8,2550.7,29.42817]
[1751934996064,1.42785,2550.8,2550.7,29.42817]
[1751934996265,0.78395,2550.8,2550.7,29.42817]
[1751934996465,1.42785,2550.8,2550.7,29.42817]
[1751934996762,0.78394,2550.9,2550.8,0.78393]
[1751934996962,1.42784,2550.9,2550.8,2.44613]
[1751934997264,1.42784,2550.9,2550.8,1.6622]
[1751934997459,0.78394,2550.9,2550.8,1.6622]
[1751934997659,1.42784,2550.9,2550.8,1.6622]
[1751934998261,1.42784,2550.9,2550.8,2.44615]
[1751934999364,1.42784,2550.9,2550.8,1.6622]
[1751935000262,1.42784,2550.9,2550.8,2.44615]
[1751935000461,1.42784,2550.9,2550.8,0.6917]
[1751935001161,0.78398,2550.7,2550.6,0.9705]
[1751935001370,1.42788,2550.7,2550.6,29.42321]
[1751935001562,0.78398,2550.7,2550.6,29.42321]
[1751935001762,1.42788,2550.7,2550.6,29.42321]
[1751935001963,0.78398,2550.7,2550.6,29.42321]
[1751935002164,1.42788,2550.7,2550.6,29.42321]
[1751935003169,1.42788,2550.7,2550.6,28.6392]
[1751935003369,1.42788,2550.7,2550.6,29.42321]
[1751935005372,0.78398,2550.7,2550.6,29.42321]
[1751935006266,0.78398,2550.7,2550.6,2.44621]
[1751935006566,1.79238,2550.8,2550.7,0.78398]
[1751935006769,0.7393,2551.7,2550.7,3.62211]
[1751935006965,0.78392,2551.0,2550.9,0.7839]
[1751935007168,0.78392,2551.0,2550.9,29.4191]
[1751935007568,1.42782,2551.0,2550.9,28.44762]
[1751935007869,0.78392,2550.9,2550.8,26.972]
[1751935008170,2.44382,2550.9,2550.8,27.6637]
[1751935008370,2.44382,2550.9,2550.8,26.972]
[1751935008567,2.44382,2550.9,2550.8,27.6637]
[1751935008769,1.79992,2550.9,2550.8,27.6637]
[1751935008968,2.44382,2550.9,2550.8,27.6637]
[1751935009170,1.79992,2550.9,2550.8,27.6637]
[1751935009370,2.44382,2550.9,2550.8,27.6637]
[1751935010267,2.49662,2550.9,2550.8,28.44765]
[1751935010472,1.79992,2550.9,2550.8,28.44765]
[1751935010866,2.49662,2550.9,2550.8,28.44765]
[1751935011066,1.79992,2550.9,2550.8,28.44765]
[1751935011265,2.49662,2550.9,2550.8,28.44765]
[1751935011569,2.49662,2550.9,2550.8,27.6607]
[1751935011870,2.49662,2550.9,2550.8,28.44465]
[1751935012565,0.78392,2550.9,2550.8,29.45835]
[1751935013866,0.78392,2551.0,2550.9,0.78389]
[1751935014072,0.78392,2551.0,2550.9,1.48069]
[1751935014275,0.78392,2551.0,2550.9,2.49439]
[1751935015169,1.48062,2551.0,2550.9,2.49439]
[1751935018472,0.78383,2551.3,2551.2,0.78378]
[1751935018677,0.78383,2551.3,2551.2,3.6446059]
[1751935018875,0.78383,2551.3,2551.2,4.6583059]
[1751935019476,0.78383,2551.3,2551.2,0.6968]
[1751935019477,1.48053,2551.3,2551.2,0.6968]
[1751935019671,0.78383,2551.2,2551.1,26.966]
[1751935019867,0.6967,2551.2,2551.1,26.965]
[1751935020073,1.48053,2551.2,2551.1,27.6618]
[1751935021477,0.78383,2551.2,2551.1,27.6618]
[1751935021678,1.48053,2551.2,2551.1,27.6618]
[1751935021980,0.78383,2551.2,2551.1,27.6618]
[1751935022273,2.98025002,2551.2,2551.1,27.6618]
[1751935022478,2.98025002,2551.2,2551.1,28.44566]
[1751935022779,2.98025002,2551.2,2551.1,27.6618]
[1751935023579,2.98025002,2551.2,2551.1,0.6968]
[1751935025478,2.98025002,2551.2,2551.1,1.48066]
[1751935026379,2.19642002,2551.2,2551.1,1.48066]
[1751935026679,2.98025002,2551.2,2551.1,2.49436]
[1751935026874,2.28355002,2551.2,2551.1,2.49436]
[1751935027076,2.28355002,2551.2,2551.1,1.48066]
[1751935027273,2.98025002,2551.2,2551.1,27.6568]
[1751935028278,4.36044592,2551.2,2550.9,0.78391]
[1751935028480,0.78401,2550.7,2550.6,0.78398]
[1751935028675,0.78401,2550.7,2550.6,1.48078]
[1751935028870,1.48071,2550.7,2550.6,2.49448]
[1751935029076,0.78401,2550.7,2550.6,2.49448]
[1751935029477,1.48071,2550.7,2550.6,2.49448]
[1751935030379,0.7839,2551.0,2550.6,3.8745259]
[1751935030680,0.7839,2551.0,2550.9,2.9479459]
[1751935030885,2.28348346,2551.0,2550.9,0.6968]
[1751935031080,0.78395,2550.8,2550.7,0.78396]
[1751935031384,1.48065,2550.8,2550.7,28.43876]
[1751935031586,2.98033286,2550.8,2550.7,28.43876]
[1751935032084,0.78404,2550.5,2550.4,2.0977]
[1751935032387,0.6967,2550.5,2550.4,28.43784]
[1751935032583,1.48074,2550.5,2550.4,29.45154]
[1751935033179,0.78408,2550.4,2550.3,0.7841]
[1751935033383,1.48078,2550.4,2550.3,28.4379]
[1751935033574,1.82181,2550.7,2550.6,0.78401]
[1751935033777,2.51851,2550.7,2550.6,2.49451]
[1751935033979,2.51851,2550.7,2550.6,1.48081]
[1751935034376,2.51851,2550.7,2550.6,0.78401]
[1751935034585,2.51851,2550.7,2550.6,1.48081]
[1751935035285,2.51851,2550.7,2550.6,0.6968]
[1751935035487,0.78404,2550.5,2550.4,4.9521859]
[1751935035686,1.48074,2550.5,2550.4,5.6489859]
[1751935035983,1.48074,2550.5,2550.2,8.355]
[1751935035984,0.78411,2550.3,2550.2,1.0137]
[1751935036181,1.48081,2550.3,2550.2,28.43791]
[1751935036382,0.7841,2550.4,2550.3,0.78407]
[1751935036578,1.4808,2550.4,2550.3,1.48087]
[1751935036782,0.7841,2550.4,2550.3,1.48087]
[1751935036985,1.4808,2550.4,2550.3,2.49457]
[1751935037182,0.7841,2550.4,2550.3,4.6585959]
[1751935037382,1.4808,2550.4,2550.3,4.6585959]
[1751935038884,0.6967,2550.4,2550.3,4.6585959]
[1751935039078,41.58404,2550.6,2550.5,0.78404]
[1751935039279,1.48074,2550.6,2550.5,1.48084]
[1751935039479,0.78404,2550.6,2550.5,1.48084]
[1751935039678,1.48074,2550.6,2550.5,1.48084]
[1751935039887,1.48074,2550.6,2550.5,2.49454]
[1751935040384,1.48074,2550.6,2550.3,3.1777259]
[1751935040385,0.78408,2550.5,2550.3,3.1777259]
[1751935040688,1.4908,2550.4,2550.3,1.42847]
[1751935041387,0.7067,2550.4,2550.3,1.42847]
[1751935041688,1.49078,2550.4,2550.3,1.42847]
[1751935042885,1.0378,2550.7,2550.3,3.8451259]
[1751935043078,4.25151658,2551.7,2550.6,2.1640259]
[1751935043284,0.78377,2551.4,2551.3,2.1640259]
[1751935043480,2.9902405,2551.4,2551.3,1.4282]
[1751935043685,2.9902405,2551.4,2551.3,0.7838]
[1751935044085,0.78383,2551.2,2551.1,29.9048559]
[1751935044285,1.86852,2551.3,2551.2,0.7838]
[1751935044485,2.57522,2551.3,2551.2,1.4282]
[1751935044991,1.86852,2551.3,2551.2,1.4282]
[1751935045192,2.57522,2551.3,2551.2,1.4282]
[1751935045389,0.78383,2551.2,2551.1,29.9048659]
[1751935045589,0.78388,2551.1,2551.0,0.78386]
[1751935045788,0.78388,2551.1,2551.0,28.38326]
[1751935045985,1.49058,2551.1,2551.0,28.38326]
[1751935046186,1.49058,2551.1,2551.0,27.73886]
[1751935046382,1.49058,2551.1,2551.0,28.38326]
[1751935047086,1.49058,2551.1,2551.0,1.42826]
[1751935047287,1.49058,2551.1,2551.0,0.6444]
[1751935048693,1.49058,2551.1,2551.0,1.42829]
[1751935049589,1.49058,2551.1,2551.0,0.6444]
[1751935049790,1.49058,2551.1,2551.0,1.42829]
[1751935052797,0.78388,2551.1,2551.0,1.42829]
[1751935052994,1.0847,2551.3,2551.0,0.6444]
[1751935053301,0.7838,2551.4,2551.3,0.78376]
[1751935053497,0.7838,2551.4,2551.3,1.42816]
[1751935053696,2.97298393,2551.4,2551.3,1.42816]
[1751935053997,0.78369,2551.7,2551.6,0.78371]
[1751935054197,2.50525294,2552.0,2551.8,0.78361]
[1751935054404,2.2655203,2551.9,2551.8,2.46471]
[1751935054702,2.97220687,2551.9,2551.8,2.46471]
[1751935054902,1.49031,2551.9,2551.8,2.46471]
[1751935055202,1.49031,2551.9,2551.8,0.6444]
[1751935056405,0.78371,2551.6,2551.5,0.78374]
[1751935056600,0.78374,2551.5,2551.4,27.9832]
[1751935056797,0.78374,2551.5,2551.4,0.6444]
[1751935057199,1.49044,2551.5,2551.4,0.6444]
[1751935061808,0.78383,2551.2,2551.1,1.0352]
[1751935062109,0.78383,2551.2,2551.1,27.5914]
[1751935062305,0.78383,2551.2,2551.1,28.6281]
[1751935062810,1.49053,2551.2,2551.1,0.6444]
[1751935063108,1.49053,2551.2,2551.1,1.42826]
[1751935063509,1.49053,2551.2,2551.1,0.6444]
[1751935064109,1.49053,2551.2,2551.1,1.42826]
[1751935064312,1.95936,2551.5,2551.1,1.6811]
[1751935064513,0.78379,2551.4,2551.3,0.78378]
[1751935064719,0.78379,2551.4,2551.3,1.42818]
[1751935064908,0.78379,2551.4,2551.3,2.46488]
[1751935065112,0.78379,2551.4,2551.3,3.85878]
[1751935067218,1.49049,2551.4,2551.3,3.85878]
[1751935067414,0.78379,2551.4,2551.3,3.85878]
[1751935069122,1.49049,2551.4,2551.3,3.075]
[1751935069515,0.78379,2551.4,2551.3,3.075]
[1751935069717,1.49049,2551.4,2551.3,3.075]
[1751935070517,1.49049,2551.4,2551.3,3.8588]
[1751935070718,1.49049,2551.4,2551.3,3.075]
[1751935071021,1.49049,2551.4,2551.3,27.5874]
[1751935071419,0.78386,2551.1,2551.0,11.56877007]
[1751935071624,1.44086,2551.1,2551.0,31.86557007]
[1751935072216,1.44086,2551.1,2551.0,3.88687007]
[1751935072621,1.44086,2551.1,2551.0,30.82887007]
[1751935073022,1.44086,2551.1,2551.0,2.83157007]
[1751935073624,1.95973,2551.0,2550.6,1.274]
[1751935073826,0.78397,2550.8,2550.7,27.72593]
[1751935074023,0.78397,2550.8,2550.7,31.83150007]
[1751935074423,0.78397,2550.8,2550.7,32.79410007]
[1751935074725,0.78394,2550.9,2550.8,0.78394]
[1751935075630,0.7839,2551.1,2551.0,0.78386]
[1751935075822,0.7839,2551.1,2551.0,2.94733007]
[1751935076127,1.4409,2551.1,2551.0,2.94733007]
[1751935076328,0.7839,2551.1,2551.0,2.94733007]
[1751935076527,0.657,2551.1,2550.8,2.16347007]
[1751935076824,0.78392,2550.9,2550.8,29.88842007]
[1751935077028,0.78392,2550.9,2550.8,29.10447007]
[1751935077726,0.78392,2550.9,2550.8,29.77257007]
[1751935077932,0.78392,2550.9,2550.8,30.55652007]
[1751935078225,1.44092,2550.9,2550.8,29.77357007]
[1751935078625,1.44092,2550.9,2550.8,30.55752007]
[1751935079329,1.44092,2550.9,2550.8,31.52012007]
[1751935079927,0.657,2550.9,2550.8,31.52012007]
[1751935080127,2.95571,2551.2,2551.1,0.78386]
[1751935080128,1.77995,2551.2,2551.1,0.78386]
[1751935080324,3.25626922,2551.2,2551.1,2.41456]
[1751935080524,2.26016922,2551.2,2551.1,2.41456]
[1751935080725,2.91716922,2551.2,2551.1,3.77216]
[1751935081320,2.13331922,2551.2,2551.1,2.41456]
[1751935081519,0.657,2551.2,2551.1,2.41456]
[1751935081728,0.78382,2551.3,2551.2,0.78383]
[1751935081929,0.657,2551.3,2551.2,3.79417007]
[1751935082129,0.7838,2551.3,2551.2,4.57800007]
[1751935082330,0.78375,2551.5,2551.4,0.78373]
[1751935082525,1.44075,2551.5,2551.4,4.57790007]
[1751935082726,0.78375,2551.5,2551.4,4.57790007]
[1751935082927,1.44075,2551.5,2551.4,4.57790007]
[1751935083131,0.78375,2551.5,2551.4,3.79417007]
[1751935083331,1.44075,2551.5,2551.4,2.83157007]
[1751935083523,1.44075,2551.5,2551.4,3.61534007]
[1751935084135,1.44075,2551.5,2551.4,4.57794007]
[1751935084332,0.657,2551.5,2551.4,4.57794007]
[1751935084737,1.44074,2551.5,2551.4,4.57794007]
[1751935085132,1.44074,2551.5,2551.4,3.79417007]
[1751935085330,1.44074,2551.5,2551.4,29.77157007]
[1751935085530,1.44074,2551.5,2551.4,30.55534007]
[1751935086532,0.657,2551.5,2551.4,31.51794007]
[1751935086832,0.78365,2551.9,2551.8,0.78362]
[1751935087038,0.78365,2551.9,2551.8,2.94709007]
[1751935087227,2.91604741,2551.9,2551.8,2.94709007]
[1751935087631,2.25904741,2551.9,2551.8,2.94709007]
[1751935087833,2.91604741,2551.9,2551.8,2.94709007]
[1751935088031,2.13239741,2551.9,2551.8,2.94709007]
[1751935088237,0.657,2551.9,2551.8,29.88509007]
[1751935088634,0.657,2551.9,2551.8,31.21989007]
[1751935089537,0.657,2551.9,2551.8,4.28189007]
[1751935089736,0.657,2551.9,2551.8,31.21689007]
[1751935090438,0.7836,2552.0,2551.9,0.78361]
[1751935091037,1.95875,2552.3,2551.8,32.06397007]
[1751935091038,0.78361,2551.9,2551.8,3.79417007]
[1751935091338,0.7837,2551.7,2551.6,26.934]
[1751935091539,0.7837,2551.7,2551.6,27.6021]
[1751935091739,0.7837,2551.7,2551.6,0.6681]
[1751935092236,1.4407,2551.7,2551.6,0.6681]
[1751935092636,0.78374,2551.5,2551.4,3.90983007]
[1751935092942,0.78374,2551.5,2551.4,29.34846]
[1751935093335,1.44074,2551.5,2551.4,29.34846]
[1751935094645,0.657,2551.5,2551.4,29.34746]
[1751935095042,1.44074,2551.5,2551.4,29.34746]
[1751935095540,1.44074,2551.5,2551.4,28.5637]
[1751935095736,1.44074,2551.5,2551.4,27.6011]
[1751935095936,1.44074,2551.5,2551.4,0.6681]
[1751935096141,1.44074,2551.5,2551.4,27.6011]
[1751935096540,1.44074,2551.5,2551.4,0.6681]
[1751935096840,1.44074,2551.5,2551.4,27.6001]
[1751935098932,1.44074,2551.5,2551.4,0.6681]
[1751935099138,0.78377,2551.4,2551.3,26.932]
[1751935099335,2.45697,2551.4,2551.3,27.6001]
[1751935099540,2.45697,2551.4,2551.3,28.3839]
[1751935099838,0.78383,2551.2,2551.1,1.0898]
[1751935100047,0.78383,2551.2,2551.1,27.5798]
[1751935100340,1.42703,2551.2,2551.1,28.36366]
[1751935100545,1.42703,2551.2,2551.1,27.5798]
[1751935100941,0.78389,2551.0,2550.9,2.0252]
[1751935101245,0.78389,2551.0,2550.9,27.5788]
[1751935101439,1.42709,2551.0,2550.9,28.36272]
[1751935101943,1.42709,2551.0,2550.9,28.36372]
[1751935102145,0.6432,2551.0,2550.9,29.32632]
[1751935102739,0.78388,2551.1,2551.0,0.78389]
[1751935102945,1.42708,2551.1,2551.0,1.43169]
[1751935103134,0.78388,2551.1,2551.0,2.44269]
[1751935103335,0.78388,2551.1,2551.0,0.6478]
[1751935103540,1.42708,2551.1,2551.0,27.5798]
[1751935104644,1.42708,2551.1,2551.0,28.36369]
[1751935104843,1.42708,2551.1,2551.0,26.932]
[1751935105039,0.78398,2550.8,2550.7,0.78396]
[1751935105245,0.6432,2550.8,2550.5,0.78403]
[1751935105447,0.784,2550.7,2550.6,27.71598]
[1751935105647,0.784,2550.7,2550.6,29.37478]
[1751935106050,1.4272,2550.7,2550.6,29.37478]
[1751935106249,0.784,2550.7,2550.6,29.37478]
[1751935106451,1.4272,2550.7,2550.6,29.37478]
[1751935106645,0.78404,2550.5,2550.4,1.0073]
[1751935106949,0.78404,2550.5,2550.4,0.6478]
[1751935107144,1.42724,2550.5,2550.4,0.6478]
[1751935107346,0.78414,2550.2,2550.1,28.72983]
[1751935107547,0.78417,2550.1,2550.0,28.72718]
[1751935107743,1.42737,2550.1,2550.0,28.72718]
[1751935108053,1.42737,2550.1,2550.0,29.37698]
[1751935108254,0.6432,2550.1,2550.0,29.37698]
[1751935109250,0.78411,2550.3,2550.2,0.78414]
[1751935109650,1.42731,2550.3,2550.2,1.43194]
[1751935109952,1.42731,2550.3,2550.2,0.6478]
[1751935110352,0.78417,2550.1,2550.0,28.72818]
[1751935110553,1.42737,2550.1,2550.0,29.37598]
[1751935110755,1.0237,2550.2,2550.1,0.78417]
[1751935110955,1.6669,2550.2,2550.1,1.43197]
[1751935111158,1.6669,2550.2,2550.1,2.44297]
[1751935111344,2.45104,2550.2,2550.1,2.44297]
[1751935114059,1.6669,2550.2,2550.1,2.44297]
[1751935114257,1.95975,2551.0,2550.4,0.78406]
[1751935114555,1.95975,2551.0,2550.4,5.283694]
[1751935114556,0.78405,2550.5,2550.4,5.283694]
[1751935114760,0.78405,2550.5,2550.4,6.942494]
[1751935114959,0.78405,2550.5,2550.4,4.60748256]
[1751935115352,1.82524,2550.6,2550.5,0.78405]
[1751935115553,2.46844,2550.6,2550.5,1.43185]
[1751935115752,2.46844,2550.6,2550.5,2.44285]
[1751935116858,1.6844,2550.6,2550.5,2.44285]
[1751935117058,2.46842,2550.6,2550.5,2.44285]
[1751935118954,0.78411,2550.3,2550.2,1.85374]
[1751935119159,0.78411,2550.3,2550.2,29.43754]
[1751935119461,1.42731,2550.3,2550.2,30.44854]
[1751935119668,0.7842,2550.0,2549.9,2.3183]
[1751935119961,1.4274,2550.0,2549.9,28.5948]
[1751935120964,0.78423,2549.9,2549.8,61.163]
[1751935121268,0.78423,2549.9,2549.8,26.936]
[1751935121464,1.42743,2549.9,2549.8,27.5838]
[1751935122360,1.42743,2549.9,2549.8,28.36806]
[1751935122556,1.42743,2549.9,2549.8,1.43206]
[1751935122762,1.42743,2549.9,2549.8,2.44306]
[1751935124761,1.42743,2549.9,2549.8,0.6478]
[1751935126464,1.42743,2549.9,2549.8,1.43206]
[1751935126965,1.42743,2549.9,2549.8,0.6478]
[1751935128361,0.78432,2549.6,2549.5,0.78435]
[1751935128563,1.42752,2549.6,2549.5,28.36915]
[1751935128759,0.78432,2549.6,2549.5,2.44315]
[1751935128963,1.42752,2549.6,2549.5,29.38015]
[1751935129462,0.78432,2549.6,2549.5,29.38015]
[1751935129766,1.42752,2549.6,2549.5,29.38015]
[1751935130364,0.6432,2549.6,2549.5,29.38015]
[1751935130678,40.8,2550.1,2550.0,0.7842]
[1751935130867,0.78419,2550.1,2550.0,1.4222]
[1751935131268,1.43559,2550.1,2550.0,0.638]
[1751935131663,2.50799,2550.1,2550.0,0.638]
[1751935135970,0.7842,2550.0,2549.9,0.78422]
[1751935136170,1.4356,2550.0,2549.9,1.42222]
[1751935137065,1.4356,2550.0,2549.9,0.638]
[1751935137369,0.78423,2549.9,2549.8,29.88622092]
[1751935137571,1.43563,2549.9,2549.8,1.42226]
[1751935137873,0.78423,2549.9,2549.8,1.42226]
[1751935138171,1.43563,2549.9,2549.8,1.42226]
[1751935138470,0.78423,2549.9,2549.8,0.638]
[1751935138670,1.43563,2549.9,2549.8,0.638]
[1751935140164,0.78426,2549.8,2549.7,27.72128]
[1751935140572,0.78426,2549.8,2549.7,29.32318]
[1751935141065,1.43566,2549.8,2549.7,29.32318]
[1751935142071,1.43566,2549.8,2549.7,0.638]
[1751935144176,1.43566,2549.8,2549.7,1.42229]
[1751935144373,1.43566,2549.8,2549.7,2.38619]
[1751935144574,1.96052,2550.0,2549.7,2.38619]
[1751935144575,0.78423,2550.0,2549.7,2.38619]
[1751935144767,0.78423,2550.0,2549.9,2.95016092]
[1751935144965,1.43563,2550.0,2549.9,3.58816092]
[1751935145171,1.43563,2550.0,2549.9,4.55206092]
[1751935145868,1.43563,2550.0,2549.9,0.638]
[1751935146569,2.92746294,2550.0,2549.9,0.638]
[1751935146878,0.78426,2549.8,2549.7,4.91884092]
[1751935147167,0.78426,2549.8,2549.7,5.55684092]
[1751935147373,1.43566,2549.8,2549.7,5.55684092]
[1751935147568,0.78426,2549.8,2549.7,5.55684092]
[1751935147773,1.43566,2549.8,2549.7,5.55684092]
[1751935147976,1.43566,2549.8,2549.7,4.77256092]
[1751935148175,1.43566,2549.8,2549.7,5.55685092]
[1751935151980,0.78426,2549.9,2549.8,0.78423]
[1751935152181,0.78426,2549.9,2549.8,2.38613]
[1751935152377,0.78422,2550.0,2549.9,0.78421]
[1751935152678,2.27751575,2550.0,2549.9,2.95017092]
[1751935152979,2.27751575,2550.0,2549.9,3.58817092]
[1751935153375,2.27751575,2550.0,2549.9,4.55207092]
[1751935154380,2.92891575,2550.0,2549.9,4.55207092]
[1751935154976,2.27751575,2550.0,2549.9,4.55207092]
[1751935155181,2.92891575,2550.0,2549.9,4.55207092]
[1751935156280,2.27751575,2550.0,2549.9,2.95017092]
[1751935156480,2.27751575,2550.0,2549.9,4.55207092]
[1751935157980,2.92891575,2550.0,2549.9,4.55207092]
[1751935159778,2.92891575,2550.0,2549.9,3.76786092]
[1751935160274,2.92891575,2550.0,2549.9,4.55209092]
[1751935161982,1.49329575,2550.0,2549.9,4.55209092]
[1751935162281,2.27749575,2550.0,2549.9,4.55209092]
[1751935162982,2.94759575,2550.0,2549.9,4.55209092]
[1751935163280,2.27749575,2550.0,2549.9,4.55209092]
[1751935164873,2.94759575,2550.0,2549.9,3.76786092]
[1751935165980,2.94759575,2550.0,2549.9,4.55209092]
[1751935166185,2.94759575,2550.0,2549.9,2.16596092]
[1751935166380,2.94759575,2550.0,2549.9,2.82486092]
[1751935168485,2.94759575,2550.0,2549.9,3.60909092]
[1751935168784,2.94759575,2550.0,2549.9,4.64629092]
[1751935169185,1.49329575,2550.0,2549.9,4.64629092]
[1751935169379,2.27749575,2550.0,2549.9,4.64629092]
[1751935169584,2.94759575,2550.0,2549.9,4.64629092]
[1751935173384,1.49329575,2550.0,2549.9,4.64629092]
[1751935173780,0.78415,2550.2,2550.1,0.78417]